Cogmind - Beta 16 @@@ ROGUE MODE // 2025.10.31 @ 18:04:57 Player: MAXX-P31 Result: Self-destructed Performance ------------- Evolutions (6) 3000 Regions Visited (15) 3000 Robots Destroyed (237) 1185 Value Destroyed (8878) 8878 Prototype IDs (20) 400 Alien Tech Used (0) 0 Bonus (1005) 1005 TOTAL SCORE: 17468 Bonus ------- High Alert Combat Kills 535 Follower Combat Kills 1296 Met R17 at Cetus 500 Friendly Fire -1326 Cogmind --------- Core Integrity 558/1150 Matter 162/300 Energy 191/315 System Corruption 19% Temperature Cool (0) Movement Rolling (130) Ox2 Location -4/Factory Parts ------- > --- POWER (2) -------- Improved Ion Engine Micro Fission Core > --- PROPULSION (4) --- Armored Medium Treads (fused) Myomer Leg Compact Wheel Compact Wheel > --- UTILITY (9) ------ Advanced Heat Sink Advanced Heat Sink Advanced Heat Sink Large Storage Unit Advanced Sensor Array Advanced Signal Interpreter Experimental Targeting Computer Improved Target Analyzer EX Chip 1 > --- WEAPON (4) ------- HERF Cannon Heavy Disruptor Cannon Advanced Plasma Cannon > --- INVENTORY (15) --- Fusion Compressor Antigrav System Advanced Matter Compressor (400) Advanced Particle Charger Advanced Transmission Jammer Advanced Variable Charge Gun Advanced Variable Charge Gun Coil Gun Mass Driver Mass Driver Hardcell Cannon Compact Tesla Bomb Launcher Compact Tesla Bomb Launcher Improved Remote Datajack Improved Plasma Cutter Peak State ------------ > --- POWER ------------ Micro Fission Core Micro Fission Core > --- PROPULSION ------- Centrium Heavy Treads Centrium Heavy Treads > --- UTILITY ---------- Advanced Power Amplifier Advanced Heat Sink Advanced Heat Sink Improved Cooling System Large Storage Unit Advanced Sensor Array Advanced Signal Interpreter Experimental Targeting Computer EX Chip 1 > --- WEAPON ----------- Heavy Wave Gun Heavy Wave Gun Ion Burst Cannon Compact Tesla Bomb Launcher > --- INVENTORY -------- Fusion Compressor Armored Treads Advanced Matter Compressor Advanced Particle Charger Advanced Transmission Jammer Advanced Variable Charge Gun Advanced Variable Charge Gun Heavy Disruptor Cannon Advanced Plasma Cannon Advanced KE Penetrator Enhanced Gauss Cannon Improved Grenade Launcher Missile Launcher Precision Grenade Launcher [Rating: 127] Favorites ----------- Power Improved Ion Engine Engine Improved Ion Engine Power Core Micro Fission Core Reactor Antimatter Reactor Propulsion Light Treads Treads Light Treads Leg Myomer Leg Wheel Compact Wheel Utility Large Storage Unit Device Advanced Heat Sink Storage Large Storage Unit Processor Experimental Targeting Computer Hackware EX Chip 1 Protection Hardened Medium Armor Plating Weapon Ion Burst Cannon Energy Gun Heavy Wave Gun Energy Cannon Ion Burst Cannon Ballistic Gun Heavy Assault Rifle Ballistic Cannon Mass Driver Launcher Improved Grenade Launcher Slashing Weapon Katana Build | -11 -10 -9 -9 -9 -8 -8 -7 -7 -7 -6 -6 -6 -6 -5 -4 ------- Run | Yrd Mat Mat Min Exi Min Mat Fac Was Fac Fac Ext Cet Arc Fac Fac Slots Evolved 12 | . . 2 . . . 2 2 . . 2 . . . 2 2 Power 1 | . . . . . . . . . . . . . . 1 . Propulsion 2 | . . . . . . 1 1 . . . . . . . . Utility 7 | . . . . . . 1 1 . . 2 . . . 1 2 Weapon 2 | . . 2 . . . . . . . . . . . . . Parts Attached 145 | 7 9 18 9 13 . 17 11 2 . 9 3 5 . . 42 Power 20 | 1 2 2 2 2 . 4 1 1 . . . . . . 5 Engine 14 | 1 2 2 2 1 . 3 1 . . . . . . . 2 Core 5 | . . . . 1 . 1 . . . . . . . . 3 Reactor 1 | . . . . . . . . 1 . . . . . . . Propulsion 27 | 2 . 5 . 4 . 4 3 1 . . 2 2 . . 4 Treads 24 | 2 . 5 . 4 . 4 3 1 . . 2 2 . . 1 Leg 1 | . . . . . . . . . . . . . . . 1 Wheel 2 | . . . . . . . . . . . . . . . 2 Hover . | . . . . . . . . . . . . . . . . Flight . | . . . . . . . . . . . . . . . . Utility 38 | 2 1 3 . 2 . 3 3 . . 5 1 1 . . 17 Device 22 | 1 . 1 . 1 . 1 2 . . 2 1 1 . . 12 Storage 3 | 1 1 . . . . . . . . . . . . . 1 Processor 3 | . . . . 1 . . . . . . . . . . 2 Hackware 2 | . . . . . . . . . . 2 . . . . . Protection 8 | . . 2 . . . 2 1 . . 1 . . . . 2 Artifact . | . . . . . . . . . . . . . . . . Weapon 60 | 2 6 8 7 5 . 6 4 . . 4 . 2 . . 16 Energy Gun 4 | . . . . . . . 1 . . . . 1 . . 2 Energy Cannon 9 | . . . . . . 1 . . . 4 . . . . 4 Ballistic Gun 31 | 2 4 7 6 2 . 5 2 . . . . 1 . . 2 Ballistic Cannon 7 | . . 1 . . . . . . . . . . . . 6 Launcher 8 | . 2 . 1 2 . . 1 . . . . . . . 2 Special Weapon . | . . . . . . . . . . . . . . . . Impact Weapon . | . . . . . . . . . . . . . . . . Slashing Weapon 1 | . . . . 1 . . . . . . . . . . . Piercing Weapon . | . . . . . . . . . . . . . . . . Special Melee Weapon . | . . . . . . . . . . . . . . . . Unidentified Prototypes 14 | . . 2 . 3 . . 2 . . 1 . 3 . . 3 Parts Lost 22 | . . . 1 9 . 1 1 . . . 1 . . . 9 Power 3 | . . . . 1 . . . . . . . . . . 2 Propulsion 7 | . . . . 4 . . 1 . . . . . . . 2 Utility 7 | . . . 1 . . . . . . . 1 . . . 5 Weapon 5 | . . . . 4 . 1 . . . . . . . . . Highest Loss Streak 9 | . . . 1 9 . 1 1 . . . 1 . . . 4 To Critical Strikes 7 | . . . . 7 . . . . . . . . . . . Average Backups 14 | 1 9 14 15 13 15 14 14 15 15 14 15 15 15 14 14 Power 1 | . 1 1 1 1 2 2 2 1 1 1 2 2 2 1 1 Propulsion 1 | . . 2 4 2 2 1 . 1 2 1 2 1 1 1 . Utility 3 | . 3 4 1 1 6 6 6 6 6 4 4 4 5 4 3 Weapon 6 | . 3 6 8 7 5 4 5 6 6 6 7 7 7 8 8 Tool/Special . | . . . . . . . . . . . . . . . . Unused Backups 33 | . 1 9 . 4 . 3 . 1 . . . 3 . 1 11 Power 8 | . 1 1 . 3 . 1 . 1 . . . . . . 1 Propulsion 5 | . . 1 . 1 . 2 . . . . . . . . 1 Utility 7 | . . 4 . . . . . . . . . . . . 3 Weapon 11 | . . 3 . . . . . . . . . 3 . 1 4 Tool/Special 2 | . . . . . . . . . . . . . . . 2 Average Slot Usage (%) 94 | . 100 99 99 93 100 98 98 94 92 88 92 87 86 87 86 Engine 6 | . 14 11 11 6 . 5 7 3 . . . . . 4 2 Core 1 | . . . . 1 11 3 . . . . . . . . 5 Reactor 1 | . . . . . . . . 3 7 6 6 6 6 5 1 Treads 20 | . 28 21 22 21 22 25 28 25 23 20 20 14 13 11 8 Device 11 | . 14 9 2 . . 1 6 7 7 11 19 20 20 17 20 Storage 8 | . 14 11 11 11 11 9 7 7 7 6 6 6 6 5 5 Processor 5 | . . . . 2 11 9 7 7 7 6 6 6 6 5 11 Hackware 2 | . . . . . . . . . . 5 6 6 6 5 5 Protection 3 | . . 1 8 5 . 7 6 7 7 3 . . . 5 2 Energy Cannon 6 | . . . . . . . . . . 10 26 25 26 23 10 Ballistic Gun 23 | . 24 41 43 32 44 35 26 30 30 15 . . . . 3 Peak Build Rating 127 | 7 8 20 18 24 24 32 40 51 51 72 73 96 96 102 127 Average Rating 49 | 5 7 15 15 15 24 28 36 46 51 60 72 88 96 101 111 On Entrance 44 | . 7 8 18 14 24 24 30 38 51 51 72 73 96 96 102 Avg Prop Armor Cover (%) 10 | . . . . . . . . . . . 5 . . . 10 Naked Turns . | . . . . . . . . . . . . . . . . Heaviest Build 95 | 12 32 41 43 47 34 48 50 55 55 82 76 75 72 87 95 Greatest Support 160 | 40 40 40 40 40 40 60 80 110 110 110 110 160 160 160 160 Greatest Overweight (x) 4 | . . 1 1 1 . 1 . . . . . . . . 4 Average Overweight (x) . | . . . . . . . . . . . . . . . . Largest Inventory Capacity 15 | 8 15 15 15 15 15 15 15 15 15 15 15 15 15 15 15 Average Capacity 14 | 7 13 15 15 15 15 15 15 15 15 15 15 15 15 15 15 Most Carried 15 | 3 15 15 15 15 15 15 15 15 15 15 15 15 15 15 15 Average Carried 14 | 1 9 14 14 13 15 14 14 14 15 14 15 14 15 14 14 Final Capacity 15 | 8 15 15 15 15 15 15 15 15 15 15 15 15 15 15 15 Final Carried 15 | 3 15 15 15 15 15 15 15 15 15 15 15 15 15 15 15 Class Distribution -------------------- 45% | Scavenger-Gunner 29% | Scavenger-Tank 8% | Mutant 7% | Gunner 5% | Scavenger-Skirmisher Dominant Class ---------------- Mutant | -10/Materials Gunner | -9/Materials Scavenger-Tank | -9/Mines Scavenger-Tank | -9/Exiles Scavenger-Gunner | -8/Mines Scavenger-Gunner | -8/Materials Scavenger-Gunner | -7/Factory Scavenger-Tank | -7/Waste Scavenger-Tank | -7/Factory Scavenger-Tank | -6/Factory Scavenger-Gunner | -6/Extension Scavenger-Gunner | -6/Cetus Scavenger-Tank | -6/Archives Scavenger-Tank | -5/Factory Scavenger-Tank | -4/Factory Resources | -11 -10 -9 -9 -9 -8 -8 -7 -7 -7 -6 -6 -6 -6 -5 -4 ----------- Run | Yrd Mat Mat Min Exi Min Mat Fac Was Fac Fac Ext Cet Arc Fac Fac Matter Collected 6196 | 294 633 859 463 177 80 885 671 109 49 34 206 80 . 20 1636 Remotely . | . . . . . . . . . . . . . . . . Salvage Created 10469 | 114 752 1441 417 110 108 1346 727 296 44 92 1325 273 64 244 3116 Parts 510 | 14 52 90 30 1 7 80 50 8 2 7 50 8 2 10 99 Haulers Intercepted 12 | . 2 4 . . . 2 1 . . . . . . . 3 Recyclers Shooed 6 | . 3 . . . . 1 1 . . . . . . . 1 Parts Field Recycled . | . . . . . . . . . . . . . . . . Retrieved Matter . | . . . . . . . . . . . . . . . . Parts Self-Destructed . | . . . . . . . . . . . . . . . . Prevented . | . . . . . . . . . . . . . . . . Parts Restored . | . . . . . . . . . . . . . . . . Kills | -11 -10 -9 -9 -9 -8 -8 -7 -7 -7 -6 -6 -6 -6 -5 -4 ------- Run | Yrd Mat Mat Min Exi Min Mat Fac Was Fac Fac Ext Cet Arc Fac Fac Combat Hostiles Destroyed 183 | . 15 25 26 3 2 25 12 1 1 1 21 4 1 4 42 Melee 1 | . . . . 1 . . . . . . . . . . . Guns 97 | . 10 24 23 . 2 15 12 1 1 1 . . . . 8 Cannons 58 | . . 1 . . . 1 . . . . 21 3 1 4 27 AOE 24 | . 5 . 3 2 . 9 . . . . . . . . 5 Classes Destroyed 19 | 2 6 4 1 . . 1 2 1 1 1 . . . . . Worker 11 | . 1 1 1 . . 3 2 . . . 1 . . 1 1 Builder 9 | . 3 . . . . 1 1 . . . . . . 1 3 Tunneler 5 | 3 . . . . . . 1 . . . . . . . 1 Hauler 12 | . 2 4 . . . 2 1 . . . . . . . 3 Recycler 13 | 1 3 1 . . . 4 . . . . 1 . . . 3 Operator 1 | . . 1 . . . . . . . . . . . . . Watcher 11 | . 1 2 . . . 2 1 . . . . 2 . . 3 Swarmer 31 | . 6 3 14 . . 4 . . . . 3 . . 1 . Cutter 1 | . . . . . . . 1 . . . . . . . . Grunt 77 | . 9 11 3 . 2 13 5 . . . 14 . . 1 19 Brawler 3 | . . 1 . . . 1 . . . . . . . . 1 Duelist 5 | . . 1 . . . 1 2 . . . . . . 1 . Sentry 26 | . . 9 . . . 5 2 . . . 4 . 1 1 4 Demolisher 1 | . . . . . . . . . 1 . . . . . . Hunter 7 | . . . . . . 1 . . . . . . . . 6 Programmer 14 | . . . . . . . 2 . . . . . . . 12 Behemoth 1 | . . . . . . . . . . 1 . . . . . Compactor 1 | . . . . . . . . 1 . . . . . . . Cetus Guard 4 | . . . . . . . . . . . . 4 . . . Assembled 16 | . . . 9 7 . . . . . . . . . . . Thug 1 | . . . . . . . . . . . 1 . . . . Martyr 1 | . . . . . . . . . . . 1 . . . . Guerrilla 1 | . . . . . . . . . . . 1 . . . . Best Kill Streak 16 | 3 6 3 9 2 2 16 3 1 1 1 5 3 1 3 7 Combat Bots Only 10 | . 4 3 9 2 2 10 3 1 1 1 5 2 1 2 6 Max Kills in Single Turn 5 | 1 2 3 2 5 1 4 1 1 1 1 4 1 1 2 3 Gunslinging 2 | . . 2 1 . . . . . . . . . . . . Exploded 4 | . 1 . 2 2 . 4 . . . . . . . . 2 Melee 1 | . . . . 1 . . . . . . . . . . . Uniques/NPCs Destroyed 2 | . . . . 2 . . . . . . . . . . . EX-HEX (-9/Exiles) 8R-AWN (-9/Exiles) Combat | -11 -10 -9 -9 -9 -8 -8 -7 -7 -7 -6 -6 -6 -6 -5 -4 -------- Run | Yrd Mat Mat Min Exi Min Mat Fac Was Fac Fac Ext Cet Arc Fac Fac Hostile Shots Fired 818 | . 62 57 68 80 22 66 83 . . . 33 18 . 5 324 Missed 242 | . 20 14 15 13 11 14 26 . . . 11 8 . 3 107 Hits 576 | . 42 43 53 67 11 52 57 . . . 22 10 . 2 217 Melee 5 | . . 1 . . . . 4 . . . . . . . . Projectile 571 | . 42 42 53 67 11 52 53 . . . 22 10 . 2 217 AOE 3 | . . . . . . . . . . . . . . . 3 Critical Strikes 50 | . . 3 1 32 2 . 3 . . . 1 1 . . 7 Part Disruptions 2 | . . . . . . . 1 . . . 1 . . . . Damage Taken 9575 | . 486 595 511 1129 179 673 740 16 . . 393 288 . 56 4509 Core 1150 | . 126 69 35 179 54 28 67 . . . . . . . 592 Absorbed by Shields . | . . . . . . . . . . . . . . . . Ignored by Resistances 17 | . . . . . . . 17 . . . . . . . . Regen/Repaired (Parts) 614 | . . 80 . . . 154 . . . 181 29 88 . . 82 Core Remaining (%) 78 | 100 49 . . . 15 94 . . 90 . . . 100 100 . Volleys Fired 436 | 6 66 53 36 2 10 55 38 11 1 5 19 10 4 5 115 Largest 4 | 2 2 4 4 2 4 4 4 4 4 4 4 4 4 4 4 Hottest 400 | 40 60 102 92 72 80 129 156 99 99 400 400 400 400 400 400 Shots Fired 1444 | 12 129 212 135 4 40 206 146 43 5 20 76 40 16 20 340 Gun 1026 | 12 118 203 132 . 40 194 145 43 5 16 . . . . 118 Cannon 381 | . . 9 . . . 4 . . . 4 76 40 16 20 212 Launcher 37 | . 11 . 3 4 . 8 1 . . . . . . . 10 Special . | . . . . . . . . . . . . . . . . Kinetic 1028 | 12 118 212 132 . 40 194 138 43 5 16 . . . . 118 Thermal 356 | . . . . . . . 7 . . 4 76 40 16 20 193 Explosive 34 | . 11 . 3 4 . 8 1 . . . . . . . 7 Electromagnetic 26 | . . . . . . 4 . . . . . . . . 22 Robot Hit Streak 27 | 2 11 19 6 7 27 20 19 11 5 8 6 9 7 7 17 Robot Miss Streak 14 | 1 3 3 10 . 2 6 3 1 1 1 14 6 6 5 13 Penetration Max 1 | . . . . . . . 1 . . . . . . . 1 Secondary Targets 19 | . 3 4 7 . 1 1 1 . . . . . . . 2 Max Gunslinging Chain 2 | . 1 2 1 . 1 1 1 . . . . . . . 1 Shots Hit Robots 958 | 7 87 130 69 42 35 127 101 37 4 12 32 24 11 8 232 Core Hits 525 | 7 46 57 37 21 12 76 39 5 3 4 47 22 7 12 130 Critical Kills 2 | . . . . . . 1 . . . . . . . . 1 Critical Parts Destroyed 7 | . 1 1 1 . 1 1 1 . . . . . . . 1 Critical Strikes 15 | . 1 1 1 1 1 2 1 . . . . . . . 7 Meltdown 1 | . . . . . . . . . . . . . . . 1 Destroy 8 | . 1 1 1 . 1 2 1 . . . . . . . 1 Blast 3 | . . . . . . . . . . . . . . . 3 Corrupt 2 | . . . . . . . . . . . . . . . 2 Sever 1 | . . . . 1 . . . . . . . . . . . Melee Attacks 52 | . . . . 52 . . . . . . . . . . . Impact . | . . . . . . . . . . . . . . . . Slashing 52 | . . . . 52 . . . . . . . . . . . Piercing . | . . . . . . . . . . . . . . . . Sneak Attacks . | . . . . . . . . . . . . . . . . Combat Hostiles . | . . . . . . . . . . . . . . . . Follow-up Attacks . | . . . . . . . . . . . . . . . . Damage Inflicted 25913 | 75 1305 1875 1122 1743 373 3050 1831 656 58 197 2059 1412 494 379 9284 Guns 10306 | 74 891 1739 898 . 351 1545 1807 656 58 197 . . . . 2090 Cannons 10422 | . . 108 . . . 88 . . . . 2056 1412 479 379 5900 Explosions 3703 | . 388 . 209 434 . 1379 . . . . . . . . 1293 Melee 1309 | . . . . 1309 . . . . . . . . . . . Ramming 173 | 1 26 28 15 . 22 38 24 . . . 3 . 15 . 1 Kinetic 10384 | 74 891 1847 898 . 351 1545 1629 656 58 197 . . . . 2238 Thermal 9670 | . . . . . . 24 178 . . . 2056 1412 479 379 5142 Explosive 3355 | . 388 . 209 434 . 1355 . . . . . . . . 969 Electromagnetic 1022 | . . . . . . 88 . . . . . . . . 934 Impact . | . . . . . . . . . . . . . . . . Slashing 1309 | . . . . 1309 . . . . . . . . . . . Piercing . | . . . . . . . . . . . . . . . . Highest Corruption 19 | . . . . . . . 4 4 4 . . . . . 19 Average Corruption 6 | . . . . . . . 3 4 4 . . . . . 7 Corruption Purged . | . . . . . . . . . . . . . . . . Corruption Blocked . | . . . . . . . . . . . . . . . . Effects 84 | . . . . . . . 19 8 3 . . . . . 54 Message Errors 15 | . . . . . . . 2 2 1 . . . . . 10 Matter Fused 23 | . . . . . . . 5 2 1 . . . . . 15 Heat Flow Errors 6 | . . . . . . . 3 . . . . . . . 3 Energy Discharges 11 | . . . . . . . 4 2 . . . . . . 5 Parts Rejected 1 | . . . . . . . . . . . . . . . 1 Parts Fused 2 | . . . . . . . 1 . . . . . . . 1 Data Loss (minor) 11 | . . . . . . . 2 . . . . . . . 9 Data Loss (major) 4 | . . . . . . . 1 1 . . . . . . 2 Misfires 5 | . . . . . . . 1 . 1 . . . . . 3 Alerts 2 | . . . . . . . . . . . . . . . 2 Weapon Failures 4 | . . . . . . . . 1 . . . . . . 3 Overload Shots . | . . . . . . . . . . . . . . . . Overflow Damage 295 | . 15 . 26 . . 25 . . . . 29 . 11 . 189 Projectiles 215 | . . . . . . . . . . . 29 . 11 . 175 Explosions 80 | . 15 . 26 . . 25 . . . . . . . . 14 Melee . | . . . . . . . . . . . . . . . . Knockbacks 13 | . . 1 . . 1 . . . . . . . . . 11 Impact 1 | . . . . . 1 . . . . . . . . . . Kinetic 11 | . . 1 . . . . . . . . . . . . 10 Secondary 1 | . . . . . . . . . . . . . . . 1 Self-Inflicted Damage 75 | . 43 . . . . 32 . . . . . . . . . Shots 3 | . 2 . . . . 1 . . . . . . . . . Rammed 28 | 1 5 5 3 . 3 4 3 . . . 2 . 1 . 1 Targets Rammed 32 | 1 6 5 3 . 3 5 5 . . . 2 . 1 . 1 Kicked . | . . . . . . . . . . . . . . . . Crushed 4 | . 1 . . . . 1 2 . . . . . . . . Highest Temperature 467 | . 16 127 279 36 288 176 206 . . 10 145 100 . . 467 Average Temperature 59 | . 6 30 68 20 152 47 49 . . 6 23 35 . . 99 Received Heat Transfer 1755 | . 195 273 107 . 135 207 189 . . . 144 18 . . 487 Effects 1 | . . . 1 . . . . . . . . . . . . Energy Bleed 1 | . . . 1 . . . . . . . . . . . . Siege Activations . | . . . . . . . . . . . . . . . . Martial Activations . | . . . . . . . . . . . . . . . . Shielding Activations . | . . . . . . . . . . . . . . . . Robots Disrupted . | . . . . . . . . . . . . . . . . Combat Hostiles . | . . . . . . . . . . . . . . . . Robots Corrupted . | . . . . . . . . . . . . . . . . Combat Hostiles . | . . . . . . . . . . . . . . . . Parts Fried 7 | . . . . . . . . . . . . . . . 7 Impact Corruptions . | . . . . . . . . . . . . . . . . Robots Melted 3 | . . . . . . . . . . . . 1 . . 2 Combat Hostiles 3 | . . . . . . . . . . . . 1 . . 2 Parts Melted 24 | . . . . . . . . . . . 4 4 1 1 14 Heat Transferred 11105 | . . . . . . 50 375 . . . 2050 1425 575 450 6180 Parts Sabotaged . | . . . . . . . . . . . . . . . . Parts Stolen . | . . . . . . . . . . . . . . . . Parts Stripped . | . . . . . . . . . . . . . . . . Power Chain Reactions 1 | . . . . . . 1 . . . . . . . . . Alert | -11 -10 -9 -9 -9 -8 -8 -7 -7 -7 -6 -6 -6 -6 -5 -4 ------- Run | Yrd Mat Mat Min Exi Min Mat Fac Was Fac Fac Ext Cet Arc Fac Fac Maximum Alert Level 3 | . . 1 . . . 1 . . . 1 3 2 1 1 2 Low Security (%) 68 | 100 100 94 100 . 100 15 100 100 100 82 14 . 1 98 51 Level 1 21 | . . 5 . . . 84 . . . 17 33 . 98 1 39 Level 2 9 | . . . . . . . . . . . 41 100 . . 8 Level 3 . | . . . . . . . . . . . 11 . . . . Level 4 . | . . . . . . . . . . . . . . . . Level 5 . | . . . . . . . . . . . . . . . . High Security . | . . . . . . . . . . . . . . . . Max Security . | . . . . . . . . . . . . . . . . Peak Influence 1038 | 10 184 240 143 . 40 335 174 24 99 232 1038 625 302 241 611 Initial 574 | . . 64 89 . . 7 128 24 . 23 89 574 213 74 117 Average 163 | 2 79 69 54 . 7 250 65 2 65 75 437 565 249 57 211 Influence Increases 7431 | 20 487 761 434 . 50 753 401 . 119 296 1727 385 189 425 1384 Destroy 0b10 Robot/C 4000 | . 300 500 340 . 40 500 240 . 40 40 720 160 80 200 840 Destroy 0b10 Robot/NC 360 | 20 50 45 5 . . 60 35 . . 10 45 10 . 10 70 Destroy Leader 788 | . 76 172 50 . 10 118 66 . 10 20 64 . . 20 182 Allied During Kill 1375 | . . . . . . . 4 . 50 70 816 170 78 172 15 Successful Hack 111 | . 15 22 . . . . 17 . 8 . 10 29 . . 10 Disable Machine 180 | . . . . . . . . . . . 30 15 30 15 90 Anti-Garrison Action 150 | . . . . . . . . . . 150 . . . . . Destroy Structure 302 | . 46 7 24 . . 30 9 . 11 6 27 1 1 8 132 Partial Spotted 15 | . . . . . . 15 . . . . . . . . . Lose Combat Pursuer 150 | . . 15 15 . . 30 30 . . . 15 . . . 45 Influence Decreases 6820 | 20 334 684 619 45 30 490 613 71 70 161 885 878 510 396 1014 Entered New Map 1645 | . . 89 141 45 . 13 155 47 . 26 95 452 320 138 124 Time Decay 4254 | 20 334 544 468 . 30 467 448 24 50 125 470 286 110 218 660 Lost Part 130 | . . . 10 . . 10 10 . . . 10 . . . 90 Lost Ally 590 | . . . . . . . . . 20 10 160 140 80 40 140 Purge Threat 201 | . . 51 . . . . . . . . 150 . . . . Squads Dispatched 33 | . 4 2 . . . 3 3 . . 3 6 . . 1 11 Investigation 7 | . 2 . . . . . . . . . 5 . . . . Extermination 9 | . . . . . . . 2 . . 1 . . . 1 5 Reinforcement 14 | . 2 2 . . . 2 1 . . . 1 . . . 6 Assault 2 | . . . . . . . . . . 2 . . . . . Garrison 1 | . . . . . . 1 . . . . . . . . . Intercept . | . . . . . . . . . . . . . . . . Searches Triggered . | . . . . . . . . . . . . . . . . Construction Impeded 3 | . . . . . . . . . . . 1 . . . 2 Haulers Reinforced 2 | . . . . . . . . . . . . . . . 2 Active Scanning Responses . | . . . . . . . . . . . . . . . . Cargo Convoy Interrupts . | . . . . . . . . . . . . . . . . Stealth | -11 -10 -9 -9 -9 -8 -8 -7 -7 -7 -6 -6 -6 -6 -5 -4 --------- Run | Yrd Mat Mat Min Exi Min Mat Fac Was Fac Fac Ext Cet Arc Fac Fac Distress Signals 19 | . 2 5 . . . 1 1 . . . 4 2 . . 4 Communications Jammed . | . . . . . . . . . . . . . . . . Distress Signals . | . . . . . . . . . . . . . . . . Times Spotted 277 | . 32 35 27 4 3 34 14 6 2 1 34 9 8 9 59 Peak Tracking Total 11 | . 6 5 4 5 3 11 5 4 2 1 8 5 2 4 7 Tactical Retreats 10 | . . 1 2 . . 1 2 . . . 1 . . . 3 Traps | -11 -10 -9 -9 -9 -8 -8 -7 -7 -7 -6 -6 -6 -6 -5 -4 ------- Run | Yrd Mat Mat Min Exi Min Mat Fac Was Fac Fac Ext Cet Arc Fac Fac Traps Triggered 4 | . 2 . . . . . 2 . . . . . . . . Indirectly . | . . . . . . . . . . . . . . . . Trap Hack Attempts . | . . . . . . . . . . . . . . . . Triggered . | . . . . . . . . . . . . . . . . Disarmed . | . . . . . . . . . . . . . . . . Reprogrammed . | . . . . . . . . . . . . . . . . Reused . | . . . . . . . . . . . . . . . . Traps Extracted . | . . . . . . . . . . . . . . . . Installed . | . . . . . . . . . . . . . . . . Triggered . | . . . . . . . . . . . . . . . . Machines | -11 -10 -9 -9 -9 -8 -8 -7 -7 -7 -6 -6 -6 -6 -5 -4 ---------- Run | Yrd Mat Mat Min Exi Min Mat Fac Was Fac Fac Ext Cet Arc Fac Fac Machines Disabled 21 | . . . . 4 . . . . . 1 6 1 2 1 6 Max in Single Turn 2 | . . . . 2 . . . . . 1 2 1 1 . 1 Garrison Access 2 | . . . . . . 1 . . . 1 . . . . . Machines Repaired . | . . . . . . . . . . . . . . . . Machines Dismantled . | . . . . . . . . . . . . . . . . Machines Sabotaged . | . . . . . . . . . . . . . . . . Overloaded Fab Kills . | . . . . . . . . . . . . . . . . Hacking | -11 -10 -9 -9 -9 -8 -8 -7 -7 -7 -6 -6 -6 -6 -5 -4 --------- Run | Yrd Mat Mat Min Exi Min Mat Fac Was Fac Fac Ext Cet Arc Fac Fac Machines Accessed 53 | . 6 9 . . . 3 5 . 1 3 15 3 1 2 5 Terminals 36 | . 5 7 . . . 1 1 . . 1 15 3 . . 3 Fabricators 4 | . . . . . . . 2 . 1 . . . . . 1 Repair Stations 5 | . . 1 . . . 1 1 . . 1 . . . . 1 Recycling Units 4 | . 1 . . . . . . . . 1 . . . 2 . Scanalyzers 2 | . . 1 . . . . 1 . . . . . . . . Garrison Access 1 | . . . . . . 1 . . . . . . . . . Total Hacks 136 | . 17 27 . . . 9 10 . 3 6 41 6 1 6 10 Successful 57 | . 6 14 . . . 7 4 . 1 3 11 4 1 3 3 Failed 78 | . 11 12 . . . 2 6 . 2 3 30 2 . 3 7 Catastrophic 15 | . 3 2 . . . . 2 . . 1 3 1 . . 3 Database Lockouts 1 | . . 1 . . . . . . . . . . . . . Manual 31 | . 4 3 . . . . 1 . 3 . 8 1 2 6 3 Terminals 94 | . 15 20 . . . 3 2 . . 2 41 6 . . 5 Fabricators 10 | . . . . . . . 4 . 3 . . . . . 3 Repair Stations 16 | . . 5 . . . 5 2 . . 2 . . . . 2 Recycling Units 10 | . 2 . . . . . . . . 2 . . . 6 . Scanalyzers 4 | . . 2 . . . . 2 . . . . . . . . Garrison Access 1 | . . . . . . 1 . . . . . . . . . Terminal Hacks 33 | . 5 8 . . . 2 . . . 1 11 4 1 . 1 Record 4 | . . . . . . . . . . . . 3 1 . . Robot Analysis 2 | . 1 . . . . . . . . . 1 . . . . Prototype ID Bank 3 | . . 2 . . . . . . . . 1 . . . . Open Door 6 | . . . . . . . . . . . 5 1 . . . Branch Access Points 1 | . . . . . . . . . . 1 . . . . . Alert Level 5 | . . 2 . . . 1 . . . . 1 . . . 1 Unreport Threat 2 | . . 1 . . . . . . . . 1 . . . . Locate Traps 2 | . . . . . . 1 . . . . 1 . . . . Dispatch Records 1 | . 1 . . . . . . . . . . . . . . Hauler Manifests 5 | . 2 2 . . . . . . . . 1 . . . . Registered Prototypes 1 | . . 1 . . . . . . . . . . . . . Zone Layout 1 | . 1 . . . . . . . . . . . . . . Fabricator Hacks 2 | . . . . . . . 2 . . . . . . . . Network Status 1 | . . . . . . . 1 . . . . . . . . Build 1 | . . . . . . . 1 . . . . . . . . Repair Station Hacks 12 | . . 4 . . . 4 1 . . 2 . . . . 1 Scan Component 7 | . . 2 . . . 2 1 . . 1 . . . . 1 Repair 5 | . . 2 . . . 2 . . . 1 . . . . . Recycling Unit Hacks 1 | . 1 . . . . . . . . . . . . . . Retrieve Components 1 | . 1 . . . . . . . . . . . . . . Scanalyzer 1 | . . 1 . . . . . . . . . . . . . Retrieve Study 1 | . . 1 . . . . . . . . . . . . . Garrison Access Hacks 1 | . . . . . . 1 . . . . . . . . . Seal Access 1 | . . . . . . 1 . . . . . . . . . Unauthorized Hacks 7 | . . 1 . . . . 1 . 1 . . . . 3 1 Terminals 2 | . . 1 . . . . 1 . . . . . . . . Botnet 2 | . . 1 . . . . 1 . . . . . . . . Fabricators 2 | . . . . . . . . . 1 . . . . . 1 Fabnet 1 | . . . . . . . . . 1 . . . . . . Haulers 1 | . . . . . . . . . . . . . . . 1 Repair Stations . | . . . . . . . . . . . . . . . . Recycling Units 3 | . . . . . . . . . . . . . . 3 . Reject 2 | . . . . . . . . . . . . . . 2 . Mask 1 | . . . . . . . . . . . . . . 1 . Scanalyzers . | . . . . . . . . . . . . . . . . Garrison Access . | . . . . . . . . . . . . . . . . Data Cores Recovered . | . . . . . . . . . . . . . . . . Used . | . . . . . . . . . . . . . . . . Hacking Detections 41 | . 5 7 . . . 2 3 . 1 2 12 2 . 2 5 Full Trace Events 6 | . 1 . . . . . . . . . 5 . . . . Feedback Events . | . . . . . . . . . . . . . . . . Feedback Blocked . | . . . . . . . . . . . . . . . . Robot Schematics Acquired . | . . . . . . . . . . . . . . . . Robots Built 2 | . . . . . . . 2 . . . . . . . . Authchips . | . . . . . . . . . . . . . . . . Time 134 | . . . . . . . 134 . . . . . . . . Total Robot Build Rating 8 | . . . . . . . 8 . . . . . . . . Part Schematics Acquired . | . . . . . . . . . . . . . . . . Parts Built . | . . . . . . . . . . . . . . . . Authchips . | . . . . . . . . . . . . . . . . Time . | . . . . . . . . . . . . . . . . Total Part Build Rating . | . . . . . . . . . . . . . . . . Part Studies Acquired 1 | . . 1 . . . . . . . . . . . . . Parts Repaired 5 | . . 2 . . . 2 . . . 1 . . . . . Time 154 | . . 52 . . . 64 . . . 38 . . . . . Parts Recycled . | . . . . . . . . . . . . . . . . Recycled Matter . | . . . . . . . . . . . . . . . . Retrieved Matter . | . . . . . . . . . . . . . . . . Retrieved Components 10 | . 10 . . . . . . . . . . . . . . Parts Scanalyzed . | . . . . . . . . . . . . . . . . Part Schematics Acquired . | . . . . . . . . . . . . . . . . Parts Damaged . | . . . . . . . . . . . . . . . . Bothacking | -11 -10 -9 -9 -9 -8 -8 -7 -7 -7 -6 -6 -6 -6 -5 -4 ------------ Run | Yrd Mat Mat Min Exi Min Mat Fac Was Fac Fac Ext Cet Arc Fac Fac Used RIF Installer . | . . . . . . . . . . . . . . . . Robots Hacked 2 | . . . . . . . . . . . 2 . . . . Non-combat . | . . . . . . . . . . . . . . . . Combat 2 | . . . . . . . . . . . 2 . . . . Robot Hacks Applied . | . . . . . . . . . . . . . . . . Relay Couplers Released 2 | . . . . . . . . . . 2 . . . . . Machine Destruction 2 | . . . . . . . . . . 2 . . . . . Fabnet Peak Effective % 3 | . . . . . . . . . . 3 3 3 3 1 . Autooverrided 2 | . . . . . . . . . . . 2 . . . . Robots Rewired 8 | . . . . . . . . . . . 8 . . . . Allies Hacked 4 | . . . . . . . . 3 . . 1 . . . . Hacks Repelled . | . . . . . . . . . . . . . . . . Allies | -11 -10 -9 -9 -9 -8 -8 -7 -7 -7 -6 -6 -6 -6 -5 -4 -------- Run | Yrd Mat Mat Min Exi Min Mat Fac Was Fac Fac Ext Cet Arc Fac Fac Total Allies 49 | . . . 4 . . . 2 22 . . 21 . . . . Largest Group 26 | . . . 3 3 . . 2 22 22 20 26 23 16 12 8 Highest-Rated Group 767 | . . . 40 40 . . 74 745 745 616 767 674 471 363 234 Highest-Rated Ally 141 | . . . 31 16 . . 37 141 129 129 129 39 39 39 39 Total Orders 2 | . . . . . . . . 2 . . . . . . . STAY 1 | . . . . . . . . 1 . . . . . . . FOLLOW 1 | . . . . . . . . 1 . . . . . . . Ally Attacks 430 | . . . . 21 . . 1 54 9 40 156 48 44 40 17 Total Damage 8240 | . . . . 78 . . 28 1200 132 748 3441 823 919 615 256 Kills 46 | . . . . 2 . . 1 2 1 3 23 4 3 7 . Allies Corrupted 1 | . . . . . . . . . . . . . . 1 . Allies Melted 2 | . . . . . . . . . . . 2 . . . . Intel | -11 -10 -9 -9 -9 -8 -8 -7 -7 -7 -6 -6 -6 -6 -5 -4 ------- Run | Yrd Mat Mat Min Exi Min Mat Fac Was Fac Fac Ext Cet Arc Fac Fac Active Infowar (turns) 5719 | 36 1076 1892 432 . . . . . . . . . . . 2283 Sensors 2283 | . . . . . . . . . . . . . . . 2283 Terrain 361 | . . . . . . . . . . . . . . . 361 Seismic 3436 | 36 1076 1892 432 . . . . . . . . . . . . Robot Analysis Total 2 | . 1 . . . . . . . . . 1 . . . . Derelict Logs Recovered 1 | . . . 1 . . . . . . . . . . . . Drone Launches . | . . . . . . . . . . . . . . . . Drone Recoveries . | . . . . . . . . . . . . . . . . Exploration | -11 -10 -9 -9 -9 -8 -8 -7 -7 -7 -6 -6 -6 -6 -5 -4 ------------- Run | Yrd Mat Mat Min Exi Min Mat Fac Was Fac Fac Ext Cet Arc Fac Fac Turns Passed 14731 | 109 1076 2168 1829 574 256 1399 1195 374 100 562 1197 626 238 535 2493 Spaces Moved 6794 | 49 524 945 822 205 137 655 604 139 58 295 617 240 116 308 1080 Core 4 | 4 . . . . . . . . . . . . . . . Treads 6658 | 45 524 945 822 205 137 655 604 139 58 295 617 240 116 308 948 Legs . | . . . . . . . . . . . . . . . . Wheels 132 | . . . . . . . . . . . . . . . 132 Hover . | . . . . . . . . . . . . . . . . Flight . | . . . . . . . . . . . . . . . . Fastest Speed 50 | 50 160 160 160 160 160 160 162 160 160 160 160 160 160 160 130 Average Speed 168 | 151 160 180 197 180 160 162 162 160 160 160 160 160 160 160 160 Slowest Speed 330 | 160 160 240 240 240 160 240 163 162 160 160 160 160 160 160 330 Overloaded Moves . | . . . . . . . . . . . . . . . . Propulsion Burnouts . | . . . . . . . . . . . . . . . . Robots Hopped . | . . . . . . . . . . . . . . . . Potential Cave-ins 2 | . . . . . . . . . . . . . . . 2 Cave-ins Triggered 1 | . . . . . . . . . . . . . . . 1 Exploration Rate (%) 48 | 5 80 88 98 25 37 49 18 78 2 7 77 86 91 9 26 Regions Visited 15 Branch Regions 6 Pre-discovered Areas . | . . . . . . . . . . . . . . . . Known Exits Taken 1 | . . . . . . . . . . 1 . . . . . Unknown Exits Taken 12 | 1 1 1 1 1 1 1 . . 1 . 1 1 1 1 . Scrap Searched 2 | . . . 2 . . . . . . . . . . . . Spaces Dug 8 | . . . . . . . 6 . . . . . . . 2 Terrain Destroyed 225 | . 56 1 24 14 . 43 6 . . . 1 . . . 80 Melee . | . . . . . . . . . . . . . . . . Projectile 46 | . . 1 . . . . . . . . 1 . . . 44 AOE 179 | . 56 . 24 14 . 43 6 . . . . . . . 36 Terrain Rammed . | . . . . . . . . . . . . . . . . Walls Destroyed . | . . . . . . . . . . . . . . . . Machines Disabled . | . . . . . . . . . . . . . . . . Actions | -11 -10 -9 -9 -9 -8 -8 -7 -7 -7 -6 -6 -6 -6 -5 -4 --------- Run | Yrd Mat Mat Min Exi Min Mat Fac Was Fac Fac Ext Cet Arc Fac Fac Total 8927 | 69 645 1285 946 329 151 870 730 266 63 372 741 441 150 328 1541 Wait 1164 | 4 16 217 67 34 2 97 56 109 5 53 58 168 30 7 241 Move 6780 | 48 523 944 821 204 137 654 604 138 57 294 616 239 115 307 1079 Hop . | . . . . . . . . . . . . . . . . Pick Up 77 | 3 15 16 1 12 . 7 2 . . 3 . 3 . 3 12 Fast Attach 81 | 7 . 6 4 3 . 7 8 1 . 7 1 7 . . 30 Attach 24 | . . 2 1 9 . 2 2 . . 2 . . . 2 4 Detach 9 | . . . . 2 . . . 2 . 1 . 2 . . 2 Swap 88 | . 10 14 6 5 . 22 7 2 . . 2 1 . . 19 Drop 140 | . 9 28 7 6 . 21 8 3 . 7 2 11 . 1 37 Fire 436 | 6 66 53 36 2 10 55 38 11 1 5 19 10 4 5 115 Melee 52 | . . . . 52 . . . . . . . . . . . Ram . | . . . . . . . . . . . . . . . . Kick . | . . . . . . . . . . . . . . . . Crush 31 | 1 6 5 3 . 2 5 5 . . . 2 . 1 . 1 Escape Stasis 1 | . . . . . . . . . . . . . . . 1 Rewire 44 | . . . . . . . . . . . 41 . . 3 . Trap . | . . . . . . . . . . . . . . . . Miscellaneous . | . . . . . . . . . . . . . . . . Route ------- -11/Scrapyard -10/Materials (discovered 4 exits: *Mat x3 / [*Min]) -9/Materials (discovered 5 exits: *Mat x3 / [*Min x2]) -9/Mines (discovered 3 exits: *Mat x2 / [*Exi]) -9/Exiles -8/Mines -8/Materials (discovered 2 exits: *Fac / *Sto) -7/Factory -7/Waste -7/Factory -6/Factory (discovered 4 exits: Low x2 / *Ext x2) -6/Extension (discovered 2 exits: *Fac / *Cet) -6/Cetus (discovered 2 exits: *Fac / *Arc) -6/Archives (discovered 3 exits: *Fac / [*Hub x2]) -5/Factory -4/Factory History --------- Turn | Location | Event 2 | -11/Scrapyard | Met Revision 17 17 | -11/Scrapyard | Discovered new exit (range 16) 110 | -11/Scrapyard | Entered Materials 301 | -10/Materials | Build established: Mutant 306 | -10/Materials | Discovered new exit (range 12) 354 | -10/Materials | Discovered new exit (range 14) 799 | -10/Materials | Discovered new exit (range 15) 841 | -10/Materials | Core integrity fell below 50% 1164 | -10/Materials | Discovered new exit (range 14) 1186 | -10/Materials | Entered another Materials area 1186 | -9/Materials | Evolved 2 slots: Weapon x2 1230 | -9/Materials | Repaired Seismic Detector 1261 | -9/Materials | Repaired Lgt. Treads 1341 | -9/Materials | Central database locked down 1632 | -9/Materials | Discovered new exit (range 10) 1846 | -9/Materials | Discovered new exit (range 9) 2038 | -9/Materials | Build established: Gunner 2146 | -9/Materials | Discovered new exit (range 3) 2580 | -9/Materials | Discovered new exit (range 5) 2704 | -9/Materials | Build established: Scavenger-Gunner 3320 | -9/Materials | Discovered new exit (range 15) 3354 | -9/Materials | Entered Mines 3355 | -9/Mines | Assembled infested the area 3499 | -9/Mines | Discovered new exit (range 11) 3514 | -9/Mines | Destroyed 9 combat bots 3932 | -9/Mines | Discovered new exit (range 5) 4091 | -9/Mines | Build established: Scavenger-Tank 4255 | -9/Mines | Received a Mining Laser from a helpful Derelict 4906 | -9/Mines | Deemed a non-threat by the Exiles lab entrance 4906 | -9/Mines | Discovered new exit (range 5) 5053 | -9/Mines | Assisted by bots powering up and referring to "LRC-V3" 5183 | -9/Mines | Entered Exiles 5183 | -9/Exiles | Accompanied by 3 allies 5214 | -9/Exiles | Discovered new exit (range 15) 5312 | -9/Exiles | Met 8R-AWN 5351 | -9/Exiles | Met EX-HEX 5453 | -9/Exiles | Attacked by the Exiles 5458 | -9/Exiles | Allies destroyed EX-HEX 5478 | -9/Exiles | Murdered 5 allies 5518 | -9/Exiles | Lost 3 allies 5549 | -9/Exiles | Core integrity fell below 50% 5604 | -9/Exiles | Lost 9 parts (1p4n4w) 5611 | -9/Exiles | Destroyed 8R-AWN 5616 | -9/Exiles | Found Prototype Device 5616 | -9/Exiles | Identified AS-neutralizer No. 17b 5619 | -9/Exiles | Found Prototype Processor 5619 | -9/Exiles | Identified Exp. Targeting Computer 5757 | -9/Exiles | Entered Mines 5868 | -8/Mines | Discovered new exit (range 11) 5928 | -8/Mines | Build established: Scavenger-Gunner 5947 | -8/Mines | Core integrity fell below 20% 6013 | -8/Mines | Entered Materials 6013 | -8/Materials | Evolved 2 slots: Propulsion x1, Utility x1 6014 | -8/Materials | Identified exit to Storage 6158 | -8/Materials | Destroyed 10 combat bots 6552 | -8/Materials | Garrison activated, responded to threat 6954 | -8/Materials | Repaired Hvy. Assault Rifle 6987 | -8/Materials | Repaired Hvy. Assault Rifle 7120 | -8/Materials | Discovered new exit (range 11) 7412 | -8/Materials | Entered Factory 7412 | -7/Factory | Evolved 2 slots: Propulsion x1, Utility x1 8313 | -7/Factory | Discovered new exit (range 12) 8515 | -7/Factory | Fabricated P-60 Hacker? 8607 | -7/Factory | Sucked down chute 8607 | -7/Factory | Entered Waste 8647 | -7/Waste | 2 allies followed down the chute 8652 | -7/Waste | Spotted C-40 Crusher 8665 | -7/Waste | Hacker 4c assimilated hostile C-40 Crusher 8676 | -7/Waste | Spotted C-40 Crusher 8679 | -7/Waste | Spotted C-40 Crusher 8680 | -7/Waste | Hacker 4c assimilated hostile C-40 Crusher 8682 | -7/Waste | Spotted C-40 Crusher 8684 | -7/Waste | Spotted C-40 Crusher 8688 | -7/Waste | Spotted C-40 Crusher 8707 | -7/Waste | Hacker 4c assimilated hostile C-40 Crusher 8710 | -7/Waste | Allies destroyed C-40 Crusher 8725 | -7/Waste | Allies destroyed C-40 Crusher 8745 | -7/Waste | Destroyed C-40 Crusher 8793 | -7/Waste | Warlord forces began an assault 8913 | -7/Waste | Discovered new exit (range 15) 8981 | -7/Waste | Entered Factory 8981 | -7/Factory | Accompanied by 22 allies 9005 | -7/Factory | Build established: Scavenger-Tank 9009 | -7/Factory | Discovered new exit (range 6) 9081 | -7/Factory | Entered another Factory area 9081 | -6/Factory | Accompanied by 20 allies 9081 | -6/Factory | Evolved 2 slots: Utility x2 9373 | -6/Factory | Repaired Arm. Treads 9389 | -6/Factory | Spotted B-75 Beast 9405 | -6/Factory | Destroyed B-75 Beast 9434 | -6/Factory | Lost 3 allies 9504 | -6/Factory | Identified exit to Lower Caves 9504 | -6/Factory | Identified exit to Extension 9643 | -6/Factory | Entered Extension 9643 | -6/Extension | Accompanied by 17 allies 9708 | -6/Extension | Build established: Scavenger-Gunner 9728 | -6/Extension | Warlord forces began an assault 9779 | -6/Extension | Spotted B-75 Beast 9782 | -6/Extension | Allies destroyed B-75 Beast 9808 | -6/Extension | Spotted B-75 Beast 9813 | -6/Extension | Allies destroyed B-75 Beast 9855 | -6/Extension | Lost 5 allies 9924 | -6/Extension | Rescued a captive Derelict 9927 | -6/Extension | Rescued a captive Derelict 9954 | -6/Extension | Rescued a captive Derelict 9954 | -6/Extension | Rescued a captive Derelict 9978 | -6/Extension | Rescued a captive Derelict 9981 | -6/Extension | Rescued a captive Derelict 10643 | -6/Extension | Rescued a captive Derelict 10644 | -6/Extension | Rescued a captive Derelict 10665 | -6/Extension | Rescued a captive Derelict 10665 | -6/Extension | Rescued a captive Derelict 10749 | -6/Extension | Discovered new exit (range 10) 10751 | -6/Extension | Discovered new exit (range 6) 10770 | -6/Extension | Disrupted transfer network 10840 | -6/Extension | Entered Cetus 10840 | -6/Cetus | Accompanied by 23 allies 10862 | -6/Cetus | Spotted Cetus Guard 10862 | -6/Cetus | Spotted Cetus Guard 10864 | -6/Cetus | Spotted Cetus Guard 10865 | -6/Cetus | Spotted Cetus Guard 10865 | -6/Cetus | Destroyed Cetus Guard 10877 | -6/Cetus | Allies destroyed Cetus Guard 10882 | -6/Cetus | Allies destroyed Cetus Guard 10886 | -6/Cetus | Destroyed Cetus Guard 10913 | -6/Cetus | Lost 5 allies 11160 | -6/Cetus | Discovered new exit (range 15) 11245 | -6/Cetus | Spotted Cetus Guard 11245 | -6/Cetus | Spotted Cetus Guard 11249 | -6/Cetus | Spotted Cetus Guard 11254 | -6/Cetus | Spotted Cetus Guard 11257 | -6/Cetus | Destroyed Cetus Guard 11261 | -6/Cetus | Allies destroyed Cetus Guard 11262 | -6/Cetus | Destroyed Cetus Guard 11265 | -6/Cetus | Allies destroyed Cetus Guard 11275 | -6/Cetus | Discovered new exit (range 15) 11294 | -6/Cetus | Met Revision 17 11466 | -6/Cetus | Entered Archives 11466 | -6/Archives | Accompanied by 16 allies 11524 | -6/Archives | Unable to access archive contents 11535 | -6/Archives | Lost 4 allies 11540 | -6/Archives | Unable to access archive contents 11543 | -6/Archives | Discovered new exit (range 16) 11564 | -6/Archives | Unable to access archive contents 11589 | -6/Archives | Build established: Scavenger-Tank 11622 | -6/Archives | Discovered new exit (range 14) 11644 | -6/Archives | Discovered new exit (range 16) 11704 | -6/Archives | Entered Factory 11704 | -5/Factory | Accompanied by 12 allies 11704 | -5/Factory | Evolved 2 slots: Power x1, Utility x1 12196 | -5/Factory | Discovered new exit (range 12) 12239 | -5/Factory | Entered another Factory area 12239 | -4/Factory | Accompanied by 8 allies 12239 | -4/Factory | Evolved 2 slots: Utility x2 12329 | -4/Factory | Lost 6 allies 13184 | -4/Factory | Found Prototype Launcher 13184 | -4/Factory | Identified Com. Tesla Bomb Launcher 13189 | -4/Factory | Found Faulty Com. Tesla Bomb Launcher 13192 | -4/Factory | Found Com. Tesla Bomb Launcher 13314 | -4/Factory | Build established: Scavenger-Skirmisher 14001 | -4/Factory | Crushed by falling debris 14002 | -4/Factory | System corruption reached 10% 14057 | -4/Factory | Lost 4 parts (2p2u) 14416 | -4/Factory | Build established: Scavenger-Gunner 14698 | -4/Factory | Spotted B-86 Titan 14732 | -4/Factory | Core integrity fell below 50% 14732 | -4/Factory | Self-destructed Last Messages --------------- 14709_ Acquired Mass Driver. 14710_ U-05 Engineer builds a Wall. 14712_ Acquired Hardcell Cannon. 14712_ Penetrated by Slug. 14712_ Slug penetrates Wall. 14713_ B-86 Titan activates siege mode. 14714_ U-05 Engineer builds a Wall. 14717_ Slug penetrates Wall. 14718_ O-24 Administrator: "IFF HANDSHAKE FAILED. SECURING TERMINAL." 14720_ System corrupted: Matter fused (-10). 14723_ Penetrated by Slug. 14723_ ALERT: Hostiles spotted, dispatching reinforcements to Terminal F015. 14725_ Acquired 2 matter. 14726_ U-05 Engineer builds a Wall. 14726_ Penetrated by Slug. 14726_ Slug penetrates Wall. 14727_ Penetrated by Slug. 14727_ U-05 Engineer builds a Wall. Map ----- +----------------------------------------------------+ | ?????????????????????????????????????????????????? | | ??????????????????????????????????????? ????? | | ????????????????????????????????????? #" ? | | ?????????????????????????????????? | | ??????????????????????? ?????? | | ????????????????????? ?????? | | ??????????????????# ??????? | | ??????????????????+ ??????? | | ??????????????????# ???????? | | ??????????????????# ????????? | | ??????????????????# ??????????# | | ??????????????????# #?????????# | | ??????????????????# #?????????# | | ??????????????????# #?????????# | | ??????????????????# #?????????# % % | | ??????????????????# #???????t?# | | ??????????????????# #?????????# !%!% | | ??????????????????# ########+## ! [ | | ??????????????????# BB * | | ????????????##????# #######"/BB### | | ??????????? = ??# # # | | ???????????" # # " " # | | ???????????" ; #u " " # | | ???????????" # # " " # | | ???????????" ?????# #u ! " " # | | ??????????????????+ @/ " " # | | ??????????????????# #o " " # | | ??????????????????# # " " # | | ??????????????????# # " " # | | ??????????????????# # ""T"" " " # | | ??????????????????# # """"" # % | | ??????????????????# # # % | | ??????????????????# ##############+## | | ??????????????????# # ## | | ??????????????????# + !! ## | | ??????????????????# # =*] ## | | ??????????????????# k #*!%]= + [ | | ??????????????????# Ag #]!][] ^######%% | | ??????????????????# g # ]] [ #????#= | | ????????????????????? ###+############????#% ! | | ?????????????????????? ??#%#??????????###### %= | | ?????????????????????? ???#]#??????????# [%= | | ?????????????????????? ???#=#??????????# ! | | ?????????????????????? ????# #??????????# | | ?????????????????????? ????# #??????????# | | ????????????????????? ????# #??#####?### | | ???????????###########+###### #??# # | | ???????????# # #??# ! """ # | | ???????????# # #??# """ # | | ???????????# # #??# """ # | +----------------------------------------------------+ Best States ------------- Heat Dissipation 108 Energy Generation 38 Energy Capacity 490 Matter Stores 300 Matter Capacity 300 Sight Range 16 Robot Scan Range 16 Terrain Scan Range 20 Terrain Scan Density 10 Power Amplification 30 Armor Coverage 450 Resistance: TH 10 Evasion (%) 40 Targeting Accuracy 12 Target Analysis 6 Recoil Reduction 4 Particle Charging 20 Offensive Hacking 14 Item Schematics ----------------- None Robot Schematics ------------------ None Fabricated ------------ P-60 Hacker | x2 | -7/Factory | Preloaded Repaired ---------- Seismic Detector | 35% | -9/Materials Lgt. Treads | 52% | -9/Materials Hvy. Assault Rifle | 30% | -8/Materials Hvy. Assault Rifle | 35% | -8/Materials Arm. Treads | 39% | -6/Factory Studied --------- Assault Rifle | -9/Materials | Hacked Alien Tech Used ----------------- None Achievements -------------- Resistances Are Futile Challenges ------------ None Game ------ Seed MakeshiftShiftSaw Manual? 0 Play Time 01:45:04 Cumulative 277.2 hours Start 2025.10.29 @ 12:08:42 End 2025.10.31 @ 18:04:57 Sessions 5 Manual Loads 0 Difficulty Rogue Special Mode None Game No. 144 Rogue 144 Adventurer 0 Explorer 0 Win Type - Total 5 Types 5/0/0/0/0/0/0/0/0/0 Lore% 55 Gallery% 64 Achievement% 42 Wizard Run 0 Options --------- Layout 1 ASCII 0 Keyboard 0 Movement Numpad Keybinds 0 Fullscreen 1 Font 24/Smallcaps Map View 50x35 Zoom Use 0% Tactical HUD 1 Map Filters NONE Filters NONE Steam 1 RUN: 2f7ed1ee-891c-41b2-8cb1-b23168613d54